Cogmind - Beta 17 @@@ ROGUE MODE // 2026.07.10 @ 23:44:52 Player: star Result: Self-destructed Performance ------------- Evolutions (2) 1000 Regions Visited (7) 1400 Robots Destroyed (29) 145 Value Destroyed (702) 702 Prototype IDs (25) 500 Alien Tech Used (0) 0 Bonus (396) 396 TOTAL SCORE: 4143 Bonus ------- Follower Combat Kills 139 Aligned with FarCom 300 Friendly Fire -43 Cogmind --------- Core Integrity 550/550 Matter 109/300 Energy 100/100 System Corruption 0% Temperature Cool (0) Movement Flying (50) Location -8/Materials Parts ------- > --- POWER (1) -------- (None) > --- PROPULSION (4) --- Flying Fortress v7 > --- UTILITY (2) ------ Small Storage Unit Launcher Guidance Computer > --- WEAPON (4) ------- AWS/Gauss > --- INVENTORY (8) ---- Combat Airjet Improved Heat Sink Light EM Pulse Cannon Rocket Launcher Rocket Launcher Plasma Cutter Peak State ------------ > --- POWER ------------ Light Nuclear Core > --- PROPULSION ------- Flying Fortress v7 > --- UTILITY ---------- Small Storage Unit Launcher Guidance Computer > --- WEAPON ----------- AWS/Gauss > --- INVENTORY -------- Combat Airjet Improved Heat Sink Light EM Pulse Cannon Light EM Pulse Cannon Rocket Launcher Rocket Launcher Plasma Cutter [Rating: 57] Favorites ----------- Power Light Deuterium Engine Engine Light Deuterium Engine Power Core Light Nuclear Core Propulsion Light Treads Treads Light Treads Leg Aluminum Leg Wheel Wheel Hover Unit Combat Airjet Flight Unit Flying Fortress v7 Utility Small Storage Unit Storage Small Storage Unit Processor Advanced Visual Processing Unit Weapon Light EM Pulse Cannon Energy Gun Small Laser Energy Cannon Light EM Pulse Cannon Ballistic Gun Light Assault Rifle Launcher Rocket Launcher Build | -11 -10 -10 -9 -9 -9 -8 -8 ------- Run | Yrd Mat Min Mat Min Exi Min Mat Slots Evolved 4 | . . . 2 . . . 2 Power . | . . . . . . . . Propulsion 2 | . . . 2 . . . . Utility . | . . . . . . . . Weapon 2 | . . . . . . . 2 Parts Attached 28 | 6 . 3 9 8 2 . . Power 2 | . . 1 . 1 . . . Engine 1 | . . 1 . . . . . Core 1 | . . . . 1 . . . Reactor . | . . . . . . . . Propulsion 9 | 2 . . 5 1 1 . . Treads 3 | . . . 3 . . . . Leg 2 | . . . 2 . . . . Wheel 2 | 2 . . . . . . . Hover 1 | . . . . 1 . . . Flight 1 | . . . . . 1 . . Utility 3 | 1 . 1 . 1 . . . Device . | . . . . . . . . Storage 1 | 1 . . . . . . . Processor 2 | . . 1 . 1 . . . Hackware . | . . . . . . . . Protection . | . . . . . . . . Artifact . | . . . . . . . . Weapon 14 | 3 . 1 4 5 1 . . Energy Gun 1 | 1 . . . . . . . Energy Cannon 5 | . . . 3 2 . . . Ballistic Gun 5 | 2 . 1 1 . 1 . . Ballistic Cannon . | . . . . . . . . Launcher 3 | . . . . 3 . . . Special Weapon . | . . . . . . . . Impact Weapon . | . . . . . . . . Slashing Weapon . | . . . . . . . . Piercing Weapon . | . . . . . . . . Special Melee Weapon . | . . . . . . . . Unidentified Prototypes . | . . . . . . . . Corrupted Parts 3 | . . . . 3 . . . System Corruption 22 | . . . . 22 . . . Parts Lost 9 | . . 1 . 7 1 . . Power 2 | . . . . 1 1 . . Propulsion 5 | . . 1 . 4 . . . Utility . | . . . . . . . . Weapon 2 | . . . . 2 . . . Highest Loss Streak 6 | . . 1 . 6 1 . . To Critical Strikes . | . . . . . . . . Average Backups 6 | 1 2 5 7 7 6 6 . Power 1 | . 1 1 2 1 . . . Propulsion . | . . . 1 . . 1 . Utility 1 | . . 1 2 1 1 1 . Weapon 2 | . 1 1 1 3 3 3 . Tool/Special . | . . . . . . . . Unused Backups 10 | . . . 4 2 2 . 2 Power 1 | . . . . . 1 . . Propulsion 1 | . . . . 1 . . . Utility 5 | . . . 2 1 1 . 1 Weapon 2 | . . . 2 . . . . Tool/Special 1 | . . . . . . . 1 Average Slot Usage (%) 84 | . 71 84 96 90 56 41 . Engine 6 | . . 8 11 3 . . . Core 3 | . . . . 6 10 . . Treads 14 | . . . 24 25 . . . Leg 6 | . . . 13 8 . . . Wheel 6 | . 28 25 2 . . . . Hover 1 | . . . . 1 7 . . Storage 11 | . 14 14 11 11 11 11 . Processor 10 | . . 7 11 11 11 11 . Energy Gun 1 | . 14 7 . . . . . Energy Cannon 9 | . . . 9 19 5 . . Ballistic Gun 9 | . 14 20 12 . 2 2 . Launcher 1 | . . . . 2 6 5 . Peak Build Rating 57 | 5 5 12 16 19 57 54 . Average Rating 16 | 4 5 8 15 15 29 47 . On Entrance 19 | . 5 5 11 16 19 42 54 Avg Prop Armor Cover (%) 5 | . . . 5 5 . . . Naked Turns . | . . . . . . . . Heaviest Build 20 | 8 8 13 18 18 20 15 . Greatest Support 60 | 26 26 26 60 60 50 50 . Greatest Overweight (x) 6 | . . 1 1 5 6 . . Average Overweight (x) . | . . . . . . . . Largest Inventory Capacity 8 | 8 8 8 8 8 8 8 . Average Capacity 7 | 6 8 8 8 8 8 8 . Most Carried 8 | 2 2 8 8 8 8 8 . Average Carried 6 | 1 2 5 7 7 6 6 . Final Capacity 8 | 8 8 8 8 8 8 8 8 Final Carried 8 | 2 2 8 8 7 7 6 6 Class Distribution -------------------- 80% | Mutant 19% | Scavenger-Mutant Dominant Class ---------------- Mutant | -10/Materials Mutant | -10/Mines Scavenger-Mutant | -9/Materials Mutant | -9/Mines Mutant | -9/Exiles Mutant | -8/Mines Mutant | -8/Materials Resources | -11 -10 -10 -9 -9 -9 -8 -8 ----------- Run | Yrd Mat Min Mat Min Exi Min Mat Matter Collected 740 | 229 . 151 149 171 40 . . Remotely . | . . . . . . . . Salvage Created 664 | . . 141 291 144 47 41 . Parts 51 | . . 12 21 17 . 1 . Haulers Intercepted . | . . . . . . . . Recyclers Shooed . | . . . . . . . . Parts Field Recycled . | . . . . . . . . Retrieved Matter . | . . . . . . . . Parts Self-Destructed . | . . . . . . . . Prevented . | . . . . . . . . Parts Restored . | . . . . . . . . Kills | -11 -10 -10 -9 -9 -9 -8 -8 ------- Run | Yrd Mat Min Mat Min Exi Min Mat Combat Hostiles Destroyed 35 | . . 9 7 9 7 3 . Guns 15 | . . 9 6 . . . . Cannons 2 | . . . 1 1 . . . AOE 17 | . . . . 7 7 3 . Classes Destroyed 6 | . . 1 3 1 1 . . Watcher 1 | . . . 1 . . . . Swarmer 17 | . . 9 2 6 . . . Grunt 7 | . . . 3 1 . 3 . Sentry 2 | . . . 2 . . . . Demolisher 2 | . . . . 2 . . . Assembled 7 | . . . . . 7 . . Best Kill Streak 10 | . . 3 2 4 7 10 . Combat Bots Only 10 | . . 3 2 4 7 10 . Max Kills in Single Turn 3 | . . 1 1 2 3 1 . Gunslinging . | . . . . . . . . Exploded 3 | . . . . 2 3 1 . Melee . | . . . . . . . . Uniques/NPCs Destroyed . | . . . . . . . . Combat | -11 -10 -10 -9 -9 -9 -8 -8 -------- Run | Yrd Mat Min Mat Min Exi Min Mat Hostile Shots Fired 185 | . . 60 19 32 58 16 . Missed 54 | . . 16 5 4 21 8 . Hits 131 | . . 44 14 28 37 8 . Melee 1 | . . . . . 1 . . Projectile 130 | . . 44 14 28 36 8 . AOE 16 | . . . . 16 . . . Part Disruptions 1 | . . . . . 1 . . Damage Taken 2123 | . . 342 169 679 773 160 . Core 238 | . . 62 25 71 60 20 . Absorbed by Shields . | . . . . . . . . Core Remaining (%) 77 | 100 . 75 . . . 56 . Volleys Fired 87 | . . 27 27 20 6 7 . Largest 2 | . . 2 2 2 1 1 . Hottest 112 | . . 60 112 112 56 33 . Shots Fired 160 | . . 54 54 28 15 9 . Gun 107 | . . 54 41 . 10 2 . Cannon 33 | . . . 13 19 1 . . Launcher 20 | . . . . 9 4 7 . Special . | . . . . . . . . Kinetic 97 | . . 44 41 . 10 2 . Thermal 21 | . . 10 11 . . . . Explosive 20 | . . . . 9 4 7 . Electromagnetic 22 | . . . 2 19 1 . . Robot Hit Streak 7 | . . 5 5 4 7 3 . Robot Miss Streak 7 | . . 7 3 2 1 2 . Penetration Max . | . . . . . . . . Secondary Targets 2 | . . 2 . . . . . Max Gunslinging Chain 1 | . . 1 . . . . . Autonomous 12 | . . . . . 10 2 . Shots Hit Robots 86 | . . 26 30 15 10 5 . Core Hits 58 | . . 13 13 12 11 9 . Critical Kills . | . . . . . . . . Critical Parts Destroyed . | . . . . . . . . Critical Strikes . | . . . . . . . . Melee Attacks . | . . . . . . . . Impact . | . . . . . . . . Slashing . | . . . . . . . . Piercing . | . . . . . . . . Sneak Attacks . | . . . . . . . . Combat Hostiles . | . . . . . . . . Follow-up Attacks . | . . . . . . . . Damage Inflicted 2463 | . . 258 416 806 483 500 . Guns 783 | . . 258 294 . 173 58 . Cannons 393 | . . . 122 270 1 . . Explosions 1282 | . . . . 531 309 442 . Melee . | . . . . . . . . Ramming 5 | . . . . 5 . . . Kinetic 740 | . . 215 294 . 173 58 . Thermal 184 | . . 43 82 59 . . . Explosive 1223 | . . . . 472 309 442 . Electromagnetic 311 | . . . 40 270 1 . . Impact . | . . . . . . . . Slashing . | . . . . . . . . Piercing . | . . . . . . . . Highest Corruption 28 | . . . . 22 28 28 . Average Corruption 21 | . . . . 12 23 28 . Corruption Purged . | . . . . . . . . Corruption Blocked . | . . . . . . . . Effects 20 | . . . . 4 15 1 . Message Errors 6 | . . . . 1 5 . . Matter Fused 4 | . . . . 1 3 . . Heat Flow Errors 3 | . . . . . 3 . . Energy Discharges 2 | . . . . . 2 . . Parts Rejected 1 | . . . . . 1 . . Data Loss (minor) 2 | . . . . 1 . 1 . Data Loss (major) 1 | . . . . 1 . . . Weapon Failures 1 | . . . . . 1 . . Overload Shots . | . . . . . . . . Overflow Damage 12 | . . . . 2 10 . . Projectiles 2 | . . . . 2 . . . Explosions 10 | . . . . . 10 . . Melee . | . . . . . . . . Knockbacks . | . . . . . . . . Impact . | . . . . . . . . Kinetic . | . . . . . . . . Secondary . | . . . . . . . . Self-Inflicted Damage 109 | . . . . 25 33 51 . Shots 6 | . . . . 1 1 4 . Rammed 1 | . . . . 1 . . . Targets Rammed 1 | . . . . 1 . . . Kicked . | . . . . . . . . Crushed . | . . . . . . . . Highest Temperature 259 | . . 4 78 144 259 19 . Average Temperature 47 | . . 2 23 59 108 9 . Received Heat Transfer 107 | . . . 30 12 20 45 . Siege Activations . | . . . . . . . . Martial Activations . | . . . . . . . . Shielding Activations . | . . . . . . . . Robots Disrupted . | . . . . . . . . Combat Hostiles . | . . . . . . . . Robots Corrupted 1 | . . . . 1 . . . Combat Hostiles 1 | . . . . 1 . . . Parts Fried . | . . . . . . . . Impact Corruptions . | . . . . . . . . Robots Melted . | . . . . . . . . Combat Hostiles . | . . . . . . . . Parts Melted . | . . . . . . . . Heat Transferred 248 | . . 100 148 . . . . Parts Sabotaged . | . . . . . . . . Parts Stolen . | . . . . . . . . Parts Stripped . | . . . . . . . . Power Chain Reactions 1 | . . . . 1 . . . Alert | -11 -10 -10 -9 -9 -9 -8 -8 ------- Run | Yrd Mat Min Mat Min Exi Min Mat Maximum Alert Level 1 | . . . 1 1 . . . Low Security (%) 97 | 100 100 100 95 97 . 100 . Level 1 2 | . . . 4 2 . . . Level 2 . | . . . . . . . . Level 3 . | . . . . . . . . Level 4 . | . . . . . . . . Level 5 . | . . . . . . . . High Security . | . . . . . . . . Max Security . | . . . . . . . . Peak Influence 209 | . . 67 209 202 . 103 . Initial 37 | . . . 13 36 . . 37 Average 82 | . . 30 121 92 . 75 . Influence Increases 1070 | . . 225 378 362 . 105 . Destroy 0b10 Robot/C 700 | . . 180 240 220 . 60 . Destroy 0b10 Robot/NC 10 | . . . 10 . . . . Destroy Leader 144 | . . 30 74 30 . 10 . Allied During Kill 30 | . . . 19 11 . . . Successful Hack 5 | . . . 5 . . . . Disable Machine 60 | . . . 30 15 . 15 . Destroy Structure 76 | . . . . 56 . 20 . Lose Combat Pursuer 45 | . . 15 . 30 . . . Influence Decreases 1033 | . . 190 318 383 74 10 58 Entered New Map 213 | . . . 22 59 74 . 58 Time Decay 720 | . . 180 296 234 . 10 . Lost Part 80 | . . 10 . 70 . . . Lost Ally 20 | . . . . 20 . . . Squads Dispatched 2 | . . . 2 . . . . Investigation 1 | . . . 1 . . . . Extermination . | . . . . . . . . Reinforcement 1 | . . . 1 . . . . Assault . | . . . . . . . . Garrison . | . . . . . . . . Intercept . | . . . . . . . . Searches Triggered . | . . . . . . . . Construction Impeded . | . . . . . . . . Haulers Reinforced . | . . . . . . . . Active Scanning Responses . | . . . . . . . . Cargo Convoy Interrupts . | . . . . . . . . Stealth | -11 -10 -10 -9 -9 -9 -8 -8 --------- Run | Yrd Mat Min Mat Min Exi Min Mat Distress Signals 3 | . . . 3 . . . . Communications Jammed . | . . . . . . . . Distress Signals . | . . . . . . . . Times Spotted 62 | . . 10 27 11 8 6 . Peak Tracking Total 13 | . . 3 8 4 13 3 . Tactical Retreats 4 | . . 1 . 2 1 . . Traps | -11 -10 -10 -9 -9 -9 -8 -8 ------- Run | Yrd Mat Min Mat Min Exi Min Mat Traps Triggered . | . . . . . . . . Indirectly . | . . . . . . . . Trap Hack Attempts . | . . . . . . . . Triggered . | . . . . . . . . Disarmed . | . . . . . . . . Reprogrammed . | . . . . . . . . Reused . | . . . . . . . . Traps Extracted . | . . . . . . . . Installed . | . . . . . . . . Triggered . | . . . . . . . . Machines | -11 -10 -10 -9 -9 -9 -8 -8 ---------- Run | Yrd Mat Min Mat Min Exi Min Mat Machines Disabled 7 | . . . 2 1 3 1 . Max in Single Turn 1 | . . . 1 1 1 1 . Machines Repaired . | . . . . . . . . Machines Dismantled . | . . . . . . . . Machines Sabotaged . | . . . . . . . . Overloaded Fab Kills . | . . . . . . . . Hacking | -11 -10 -10 -9 -9 -9 -8 -8 --------- Run | Yrd Mat Min Mat Min Exi Min Mat Machines Accessed 3 | . . 1 1 . 1 . . Terminals 1 | . . . 1 . . . . Fabricators . | . . . . . . . . Repair Stations . | . . . . . . . . Recycling Units . | . . . . . . . . Scanalyzers . | . . . . . . . . Garrison Access . | . . . . . . . . Total Hacks 6 | . . 1 4 . 1 . . Successful 3 | . . 1 1 . 1 . . Failed 3 | . . . 3 . . . . Catastrophic . | . . . . . . . . Database Lockouts . | . . . . . . . . Manual 1 | . . . . . 1 . . Terminals 4 | . . . 4 . . . . Fabricators . | . . . . . . . . Repair Stations . | . . . . . . . . Recycling Units . | . . . . . . . . Scanalyzers . | . . . . . . . . Garrison Access . | . . . . . . . . Terminal Hacks 3 | . . 1 1 . 1 . . Prototype ID Bank 1 | . . . 1 . . . . Open Door 1 | . . 1 . . . . . Proto ID Catalog 1 | . . . . . 1 . . Fabricator Hacks . | . . . . . . . . Repair Station Hacks . | . . . . . . . . Recycling Unit Hacks . | . . . . . . . . Scanalyzer . | . . . . . . . . Garrison Access Hacks . | . . . . . . . . Unauthorized Hacks . | . . . . . . . . Terminals . | . . . . . . . . Fabricators . | . . . . . . . . Repair Stations . | . . . . . . . . Recycling Units . | . . . . . . . . Scanalyzers . | . . . . . . . . Garrison Access . | . . . . . . . . Data Cores Recovered 1 | . . . 1 . . . . Used . | . . . . . . . . Hacking Detections 1 | . . . 1 . . . . Full Trace Events . | . . . . . . . . Feedback Events . | . . . . . . . . Feedback Blocked . | . . . . . . . . Robot Schematics Acquired . | . . . . . . . . Robots Built . | . . . . . . . . Authchips . | . . . . . . . . Time . | . . . . . . . . Total Robot Build Rating . | . . . . . . . . Part Schematics Acquired . | . . . . . . . . Parts Built . | . . . . . . . . Authchips . | . . . . . . . . Time . | . . . . . . . . Total Part Build Rating . | . . . . . . . . Part Studies Acquired . | . . . . . . . . Parts Repaired . | . . . . . . . . Time . | . . . . . . . . Parts Recycled . | . . . . . . . . Recycled Matter . | . . . . . . . . Retrieved Matter . | . . . . . . . . Retrieved Components . | . . . . . . . . Parts Scanalyzed . | . . . . . . . . Part Schematics Acquired . | . . . . . . . . Parts Damaged . | . . . . . . . . Bothacking | -11 -10 -10 -9 -9 -9 -8 -8 ------------ Run | Yrd Mat Min Mat Min Exi Min Mat Used RIF Installer . | . . . . . . . . Robots Hacked . | . . . . . . . . Non-combat . | . . . . . . . . Combat . | . . . . . . . . Robot Hacks Applied . | . . . . . . . . Relay Couplers Released . | . . . . . . . . Fabnet Peak Effective % . | . . . . . . . . Robots Rewired . | . . . . . . . . Allies Hacked . | . . . . . . . . Hacks Repelled . | . . . . . . . . Allies | -11 -10 -10 -9 -9 -9 -8 -8 -------- Run | Yrd Mat Min Mat Min Exi Min Mat Total Allies 1 | . . 1 . . . . . Largest Group 1 | . . 1 1 1 . . . Highest-Rated Group 31 | . . 31 31 31 . . . Highest-Rated Ally 31 | . . 31 31 31 . . . Total Orders . | . . . . . . . . Ally Attacks 46 | . . . 35 11 . . . Total Damage 444 | . . . 358 86 . . . Kills 8 | . . . 6 2 . . . Allies Corrupted . | . . . . . . . . Allies Melted . | . . . . . . . . Intel | -11 -10 -10 -9 -9 -9 -8 -8 ------- Run | Yrd Mat Min Mat Min Exi Min Mat Active Infowar (turns) 1503 | . . 282 710 511 . . . Optics 1503 | . . 282 710 511 . . . Robot Analysis Total . | . . . . . . . . Derelict Logs Recovered 1 | . . . . 1 . . . Drone Launches . | . . . . . . . . Drone Recoveries . | . . . . . . . . Exploration | -11 -10 -10 -9 -9 -9 -8 -8 ------------- Run | Yrd Mat Min Mat Min Exi Min Mat Turns Passed 2242 | 46 37 488 710 610 322 29 . Spaces Moved 1399 | 41 42 252 395 309 333 27 . Core 5 | 1 . . . 1 3 . . Treads 556 | . . . 311 245 . . . Legs 47 | . . . 47 . . . . Wheels 371 | 40 42 252 37 . . . . Hover 236 | . . . . 63 173 . . Flight 184 | . . . . . 157 27 . Fastest Speed 50 | 50 90 90 95 150 50 50 . Average Speed 120 | 88 90 90 149 158 87 50 . Slowest Speed 350 | 90 90 95 190 300 350 50 . Overloaded Moves . | . . . . . . . . Propulsion Burnouts . | . . . . . . . . Robots Hopped 1 | . . . . . . 1 . Potential Cave-ins . | . . . . . . . . Cave-ins Triggered . | . . . . . . . . Exploration Rate (%) 34 | 3 17 54 51 67 70 12 1 Regions Visited 7 Branch Regions 4 Pre-discovered Areas 1 | . . . . 1 . . . Known Exits Taken . | . . . . . . . . Unknown Exits Taken 7 | 1 1 1 1 1 1 1 . Scrap Searched 3 | . . 2 . 1 . . . Spaces Dug . | . . . . . . . . Terrain Destroyed 136 | . . . . 63 29 44 . Melee . | . . . . . . . . Projectile 5 | . . . . . 3 2 . AOE 131 | . . . . 63 26 42 . Terrain Rammed . | . . . . . . . . Walls Destroyed . | . . . . . . . . Machines Disabled . | . . . . . . . . Actions | -11 -10 -10 -9 -9 -9 -8 -8 --------- Run | Yrd Mat Min Mat Min Exi Min Mat Total 1810 | 47 41 460 471 399 358 34 . Wait 252 | . . 172 23 52 5 . . Move 1390 | 40 41 251 394 308 332 24 . Hop 1 | . . . . . . 1 . Pick Up 18 | 1 . 6 7 4 . . . Fast Attach 15 | 5 . 2 4 1 3 . . Attach 8 | . . . . 4 3 1 . Detach 7 | . . . . 1 5 1 . Swap 15 | 1 . 2 6 6 . . . Drop 16 | . . . 10 2 4 . . Fire 87 | . . 27 27 20 6 7 . Melee . | . . . . . . . . Ram 1 | . . . . 1 . . . Kick . | . . . . . . . . Crush . | . . . . . . . . Escape Stasis . | . . . . . . . . Rewire . | . . . . . . . . Trap . | . . . . . . . . Miscellaneous . | . . . . . . . . Route ------- -11/Scrapyard -10/Materials -10/Mines (discovered 2 exits: *Mat / [*Sub]) -9/Materials (discovered 2 exits: [*Mat] / [*Min]) -9/Mines (discovered 3 exits: [*Mat x2] / *Exi) -9/Exiles -8/Mines -8/Materials History --------- Turn | Location | Event 30 | -11/Scrapyard | Discovered new exit (range 15) 47 | -11/Scrapyard | Entered Materials 68 | -10/Materials | Discovered new exit (range 16) 84 | -10/Materials | Entered Mines 156 | -10/Mines | Met a Derelict who couldn't figure out how to use a Trap Extractor 311 | -10/Mines | Build established: Mutant 440 | -10/Mines | Discovered new exit (range 6) 491 | -10/Mines | Discovered new exit (range 11) 508 | -10/Mines | Escorted by a lone wolf Derelict 572 | -10/Mines | Entered Materials 572 | -9/Materials | Accompanied by 1 ally 572 | -9/Materials | Evolved 2 slots: Propulsion x2 947 | -9/Materials | Discovered new exit (range 11) 1126 | -9/Materials | Build established: Scavenger-Mutant 1265 | -9/Materials | Discovered new exit (range 6) 1282 | -9/Materials | Entered Mines 1282 | -9/Mines | Accompanied by 1 ally 1497 | -9/Mines | Build established: Mutant 1519 | -9/Mines | Received a Rocket Launcher from a helpful Derelict 1691 | -9/Mines | Assembled infested the area 1691 | -9/Mines | Found a damaged Exp. Sensor Array with a note attached 1722 | -9/Mines | Found Prototype Device 1734 | -9/Mines | Discovered new exit (range 9) 1791 | -9/Mines | Lost 6 parts (4n2w) 1794 | -9/Mines | System corruption reached 10% 1812 | -9/Mines | Discovered new exit (range 11) 1884 | -9/Mines | Discovered new exit (range 7) 1892 | -9/Mines | Entered Exiles 1930 | -9/Exiles | Met 8R-AWN 1951 | -9/Exiles | Met EX-HEX 2009 | -9/Exiles | Met EX-DEC 2060 | -9/Exiles | Met EX-BIN 2070 | -9/Exiles | Aligned with FarCom system 2071 | -9/Exiles | Given EX-Vault access code 2091 | -9/Exiles | Opened EX-Vault 2099 | -9/Exiles | Found Flying Fortress v7 2102 | -9/Exiles | Found AWS/Gauss 2112 | -9/Exiles | Warned to stay clear of 0b10 Research branches 2136 | -9/Exiles | Attacked by the Exiles 2181 | -9/Exiles | Discovered new exit (range 14) 2214 | -9/Exiles | Stole two prototypes: Flying Fortress v7, AWS/Gauss 2214 | -9/Exiles | Entered Mines 2235 | -8/Mines | Discovered new exit (range 16) 2243 | -8/Mines | Entered Materials 2243 | -8/Materials | Evolved 2 slots: Weapon x2 2243 | -8/Materials | Self-destructed Last Messages --------------- 02197_ Acquired 8 matter. 02198_ Acquired 3 matter. 02199_ Acquired 10 matter. 02200_ Acquired 8 matter. 02204_ %GUCGTXI1GWDX>GSX5X9DU0 02204_ Acquired 1 matter. 02205_ HV Slug penetrates Wall. LOCATION=UNKNOWN GOAL=ESCAPE 02215_ G-47 Trooper destroyed. 02215_ Seismic Survey Station disabled. 02225_ G-50 Soldier destroyed. 02227_ G-47 Trooper destroyed. 02228_ The unstable cave ceiling collapses. 02235_ System corrupted: Component data lost. 02235_ EXIT=FOUND 02242_ Slug penetrates S-10 Pest. PARAMETERS=WEAPON+2 LOCATION=UNKNOWN GOAL=ESCAPE Map ----- +----------------------------------------------------+ | ?????????????????????????????????????????????????? | | ?????????????????????????????????????????????????? | | ?????????????????????????????????????????????????? | | ?????????????????????????????????????????????????? | | ?????????????????????????????????????????????????? | | ?????????????????????????????????????????????????? | | ?????????????????????????????????????????????????? | | ?????????????????????????????????????????????????? | | ?????????????????????????????????????????????????? | | ?????????????????????????????????????????????????? | | ???????????????????????? ??????????????????????? | | ???????????????????????? ??????????????????????? | | ???????????????????????? ??????????????????????? | | ???????????????????????# #?????????????????????? | | ???????????????????????# #?????????????????????? | | ???????????????????????# #?####????????????????? | | ???????????????????????+ #?!//]????????????????? | | ???????????????????????# #!!//?????????????????? | | ???????????????????????# # ??????????????????? | | ???????????????????????# # ???????????????????? | | ???????????????????????# ???????????????????? | | ???????????????????????# ????????????????????? | | ???????????????????????# ?????????????????????? | | ???????????????????????# #?????????????????????? | | ???????????????????????# #?????????????????????? | | ???????????????????????# @ #?????????????????????? | | ???????????????????????# #?????????????????????? | | ???????????????????????#####?????????????????????? | | ?????????????????????????????????????????????????? | | ?????????????????????????????????????????????????? | | ?????????????????????????????????????????????????? | | ?????????????????????????????????????????????????? | | ?????????????????????????????????????????????????? | | ?????????????????????????????????????????????????? | | ?????????????????????????????????????????????????? | | ?????????????????????????????????????????????????? | | ?????????????????????????????????????????????????? | | | | | | | | | | | | | | | | | | | | | | | | | | | +----------------------------------------------------+ Best States ------------- Heat Dissipation 28 Energy Generation 14 Energy Capacity 160 Matter Stores 300 Matter Capacity 300 Sight Range 20 Terrain Scan Density 10 Evasion (%) 60 Launcher Accuracy 20 Recoil Reduction 3 Item Schematics ----------------- None Robot Schematics ------------------ None Fabricated ------------ Nothing Repaired ---------- Nothing Studied --------- None Alien Tech Used ----------------- None Achievements -------------- None Challenges ------------ None Game ------ Seed MassAccelerationFragment Manual? 0 Play Time 00:17:03 Cumulative 229.8 hours Start 2026.07.10 @ 23:24:40 End 2026.07.10 @ 23:44:52 Sessions 1 Manual Loads 0 Difficulty Rogue Special Mode None Game No. 376 Rogue 376 Adventurer 0 Explorer 0 Win Type - Total 2 Types 2/0/0/0/0/0/0/0/0/0 Lore% 66 Gallery% 61 Achievement% 50 Wizard Run 0 Options --------- Layout 2 ASCII 0 Keyboard 1 Movement Numpad Keybinds 0 Fullscreen 1 Font 20/SmallcapsGlow Map View 64x51 Zoom Use 0% Tactical HUD 1 Map Filters NONE Filters NONE Steam 1 RUN: 4432e238-b711-4787-a8c9-250e0f3bd699